bitfinex/quotes_ETHUSD_20220109
["timestamp","ask_amount","ask_price","bid_price","bid_amount"]
[1641734322797,4.80074,3125.1,3125.0,2.73221941]
[1641734326766,1.89233544,3125.1,3125.0,2.73221941]
[1641734327767,2.69267544,3125.1,3125.0,2.73221941]
[1641734328369,1.89227544,3125.1,3125.0,2.73221941]
[1641734330505,3.71725335,3125.2,3125.0,2.73221941]
[1641734330905,3.71725335,3125.2,3125.1,0.00511582]
[1641734331108,2.91692335,3125.2,3125.1,0.00511582]
[1641734331404,2.91692335,3125.2,3125.1,2.73165099]
[1641734332457,1.28089119,3125.2,3125.1,2.73165099]
[1641734333358,2.88169499,3125.2,3125.1,2.73165099]
[1641734333758,0.48050119,3125.2,3125.1,2.73165099]
[1641734334058,4.0018243,3125.3,3125.1,2.73165099]
[1641734334059,0.8003043,3125.3,3125.1,2.73165099]
[1641734334259,0.8002303,3125.6,3125.1,2.73165099]
[1641734334458,0.8002303,3125.6,3125.2,0.00454739]
[1641734334658,0.01322134,3125.8,3125.2,0.00454739]
[1641734334659,0.80021,3125.7,3125.2,0.00454739]
[1641734335069,0.81339134,3125.8,3125.2,2.73108256]
[1641734335359,0.00284211,3125.7,3125.2,2.11904256]
[1641734335560,0.00284211,3125.7,3125.3,2.40665446]
[1641734335758,0.00227369,3125.6,3125.3,2.40665446]
[1641734336207,0.00170527,3125.5,3125.3,2.40665446]
[1641734336602,0.00113684,3125.4,3125.3,2.40665446]
[1641734337905,0.80143684,3125.4,3125.3,2.40665446]
[1641734338505,0.80143684,3125.4,3125.2,2.40665446]
[1641734338906,2.40212174,3125.4,3125.2,2.40665446]
[1641734339106,0.61686766,3125.3,3125.2,2.40665446]
[1641734339306,0.61686766,3125.3,3124.9,2.40665446]
[1641734339507,1.60072,3125.2,3124.9,2.40665446]
[1641734339708,1.60072,3125.2,3125.0,0.00113685]
[1641734340147,0.80036,3125.2,3125.0,0.00113685]
[1641734340346,1.60177954,3125.4,3125.0,0.00113685]
[1641734340347,0.80142954,3125.4,3125.0,0.00113685]
[1641734340546,0.80140684,3125.4,3125.0,0.00113685]
[1641734341048,0.80140684,3125.4,3125.1,2.40665446]
[1641734341446,1.60168454,3125.4,3125.1,2.40665446]
[1641734341654,0.80031,3125.3,3125.1,2.40665446]
[1641734342247,0.80031,3125.3,3125.0,2.40779131]
[1641734342649,1.60062,3125.3,3125.0,2.40779131]
[1641734342850,0.8003333,3125.2,3125.0,0.00113685]
[1641734343150,0.8003333,3125.2,3124.7,0.00284212]
[1641734343349,0.80042,3125.1,3124.7,0.00284212]
[1641734343796,0.64055919,3124.8,3124.7,0.00284212]
[1641734344197,0.64055919,3124.8,3124.5,0.00397897]
[1641734344495,0.64055919,3124.8,3124.4,0.00454739]
[1641734344496,0.80043,3124.7,3124.4,0.00454739]
[1641734344697,1.60086,3124.7,3124.4,0.00454739]
[1641734344898,0.80043,3124.7,3124.4,0.00454739]
[1641734345699,0.69978916,3124.8,3124.5,9.15]
[1641734345901,0.800406,3124.9,3124.5,9.15]
[1641734346099,1.60064,3125.3,3124.6,0.00341054]
[1641734346301,0.80032,3125.3,3124.6,0.00341054]
[1641734346900,1.29599439,3125.3,3124.7,16.6]
[1641734347101,1.09449608,3125.5,3124.7,16.6]
[1641734347344,1.09449608,3125.5,3124.8,0.00341054]
[1641734347747,1.60056,3125.4,3124.8,0.00341054]
[1641734349146,4.80056,3125.4,3124.8,0.00341054]
[1641734349446,4.80056,3125.4,3124.7,4.09285725]
[1641734349848,4.80056,3125.4,3124.8,0.00341054]
[1641734350348,4.80056,3125.4,3124.7,0.00397896]
[1641734351297,1.60064,3125.3,3124.7,0.00397896]
[1641734351497,0.80032,3125.3,3124.7,0.00397896]
[1641734352199,0.80035,3125.2,3124.7,0.00397896]
[1641734352400,0.80035,3125.2,3124.7,0.63779331]
[1641734352601,3.2,3125.4,3124.7,1.79028323]
[1641734352802,3.2,3125.4,3124.8,0.00341054]
[1641734353602,4.00029,3125.4,3124.8,0.00341054]
[1641734354702,4.80058,3125.4,3124.7,0.00397896]
[1641734354955,4.80058,3125.4,3124.7,0.5820935]
[1641734355356,4.80058,3125.4,3124.8,0.00341054]
[1641734355559,4.80058,3125.4,3124.8,2.72966325]
[1641734355758,3.2,3125.4,3124.8,2.72966325]
[1641734355957,3.2,3125.4,3124.9,0.00284211]
[1641734356256,3.2,3125.4,3124.8,0.00341054]
[1641734356657,3.2,3125.4,3124.8,0.51229935]
[1641734357058,3.2,3125.4,3124.9,0.00284211]
[1641734357258,3.2,3125.4,3124.9,2.72909482]
[1641734357458,3.2,3125.4,3124.9,2.72625271]
[1641734357659,3.2,3125.4,3124.7,4.8154293]
[1641734357660,3.2,3125.4,3125.0,0.00227369]
[1641734358063,3.2,3125.4,3124.7,4.8154293]
[1641734358064,3.2,3125.4,3124.8,0.00341054]
[1641734358359,3.2,3125.4,3124.8,2.72966325]
[1641734358360,4.0003,3125.4,3124.8,2.72966325]
[1641734358800,4.0003,3125.4,3124.9,0.00284211]
[1641734359301,4.80061,3125.4,3125.3,2.40556216]
[1641734360003,6.55,3125.3,3124.8,2.72966325]
[1641734360201,4.00031,3125.4,3124.8,2.72966325]
[1641734360403,9.00081,3125.4,3125.3,2.72625271]
[1641734360606,4.25081,3125.4,3125.3,2.72625271]
[1641734360803,5.05136,3125.4,3125.3,2.72625271]
[1641734361205,5.05136,3125.4,3125.2,1.20442852]
[1641734361405,5.8518828,3125.4,3125.2,1.20442852]
[1641734362651,6.6524128,3125.4,3125.2,1.20442852]
[1641734362853,6.6524128,3125.4,3125.3,1.20442852]
[1641734363657,6.6524128,3125.4,3125.2,1.20442852]
[1641734364054,6.6524128,3125.4,3125.2,1.14042852]
[1641734364253,6.6524128,3125.4,3125.3,3.86668123]
[1641734365356,6.4019128,3125.4,3125.3,3.86668123]
[1641734365554,6.4019128,3125.4,3125.3,1.14042852]
[1641734365759,4.8010528,3125.4,3125.3,2.72625271]
[1641734366105,5.42413917,3125.4,3125.3,2.72625271]
[1641734366499,0.8004671,3125.2,3124.9,0.00284211]
[1641734366901,0.80037,3125.1,3124.7,0.51348586]
[1641734367202,0.80037,3125.1,3124.2,0.16568423]
[1641734367203,0.80042,3125.1,3124.2,0.16568423]
[1641734367403,0.00341054,3125.0,3124.2,0.16568423]
[1641734367701,3.2,3125.4,3124.2,0.16568423]
[1641734367702,0.00284212,3124.9,3124.4,0.8002597]
[1641734367901,0.00284212,3124.9,3124.3,0.80026]
[1641734368102,0.00227369,3124.8,3124.3,1.10026]
[1641734368306,0.00227369,3124.8,3124.7,8.79309977]
[1641734368502,4.39147563,3125.4,3124.7,8.79309977]
[1641734368702,5.19175563,3125.4,3124.7,8.79309977]
[1641734368906,0.00511581,3125.3,3124.7,8.79309977]
[1641734369302,0.00454739,3125.2,3124.7,8.79309977]
[1641734369704,0.00397896,3125.1,3124.7,0.69309977]
[1641734370150,0.00341054,3125.0,3124.7,0.69309977]
[1641734370556,5.99204563,3125.4,3124.7,0.64309977]
[1641734370557,0.00284212,3124.9,3124.7,0.64309977]
[1641734370952,5.99204563,3125.4,3124.7,0.64309977]
[1641734370953,0.00227369,3124.8,3124.7,0.64309977]
[1641734371451,0.00227369,3124.8,3124.7,6.14309977]
[1641734372650,4.80057,3125.4,3124.8,7.65]
[1641734372651,3.16703952,3125.4,3124.8,7.65]
[1641734373051,0.00284212,3125.3,3124.8,7.65]
[1641734373254,0.00284212,3125.3,3124.9,1.87611856]
[1641734373455,3.16703952,3125.4,3125.2,16.61203874]
[1641734373701,3.16703952,3125.4,3125.3,17.13791629]
[1641734374000,1.28079922,3126.2,3125.4,13.5]
[1641734374202,1.20657153,3126.4,3125.5,2.49997798]
[1641734374400,0.00738951,3126.1,3125.5,2.49997798]
[1641734374801,0.00682109,3126.0,3125.5,2.49997798]
[1641734375203,0.00625266,3125.9,3125.8,12.74995]
[1641734375401,0.00625266,3125.9,3125.5,2.3029523]
[1641734375604,0.00625266,3125.9,3125.6,3.2004408]
[1641734375803,0.00568424,3125.8,3125.6,3.2004408]
[1641734376006,0.00568424,3125.8,3125.7,9.23146573]
[1641734376208,1.20657153,3126.4,3125.7,10.03144573]
[1641734376602,0.00852636,3126.3,3125.7,10.03144573]
[1641734377005,1.20657153,3126.4,3125.7,2.93144573]
[1641734377006,0.00795793,3126.2,3125.7,2.93144573]
[1641734377458,0.00738951,3126.1,3125.7,2.93144573]
[1641734377854,0.00682109,3126.0,3125.7,2.93144573]
[1641734378259,0.00625266,3125.9,3125.7,2.93144573]
[1641734378456,0.00625266,3125.9,3125.8,2.14742877]
[1641734378657,1.28079922,3126.2,3125.8,2.14742877]
[1641734378856,1.28079922,3126.2,3125.6,2.22078658]
[1641734379055,0.00738951,3126.1,3125.6,2.22078658]
[1641734379256,1.14480404,3125.9,3125.6,2.22078658]
[1641734379456,1.14480404,3125.9,3125.4,2.13239659]
[1641734379658,0.56789619,3125.7,3125.3,2.90678657]
[1641734380057,0.00454739,3125.6,3125.3,2.90678657]
[1641734380256,0.00454739,3125.6,3125.2,5.1453]
[1641734380457,0.00397897,3125.5,3125.2,5.1453]
[1641734380656,0.00397897,3125.5,3125.3,2.12190953]
[1641734380856,0.00341054,3125.4,3125.3,2.12190953]
[1641734381305,0.00341054,3125.4,3125.3,9.87190953]
[1641734382001,3.2,3125.9,3125.5,0.80002]
[1641734382300,0.0022737,3125.8,3125.5,2.872674]
[1641734382501,0.0022737,3125.8,3125.5,0.80002]
[1641734382704,0.00170527,3125.7,3125.6,2.72577019]
[1641734383704,0.60709224,3125.9,3125.6,2.72577019]
[1641734384304,0.60709224,3125.9,3125.4,2.72577019]
[1641734384505,1.28079922,3126.2,3125.4,3.52582019]
[1641734384705,1.86962102,3126.2,3125.5,0.58202556]
[1641734384954,0.0022737,3126.1,3125.5,0.00113684]
[1641734385453,0.00170528,3126.0,3125.5,0.00113684]
[1641734385653,0.00170528,3126.0,3125.5,1.60110764]
[1641734385953,0.00113685,3125.9,3125.7,2.39625024]
[1641734387155,1.14334648,3126.4,3125.7,8.95]
[1641734387557,0.00113685,3126.1,3125.8,2.72577019]
[1641734387956,0.00113685,3126.1,3125.8,4.85382438]
[1641734388357,0.00113685,3126.1,3125.8,2.72577019]
[1641734389026,0.00113685,3126.1,3125.9,2.72577019]
[1641734389829,0.00113685,3126.1,3125.6,5.12202043]
[1641734390231,0.00113685,3126.1,3126.0,2.72577019]
[1641734391035,0.00113685,3126.1,3125.7,2.72690703]
[1641734391231,0.54511148,3125.8,3125.7,2.72690703]
[1641734391636,0.54511148,3125.8,3125.7,0.00113684]
[1641734393061,1.4233936,3125.9,3125.7,0.00113684]
[1641734393260,0.00113685,3126.1,3125.7,0.00113684]
[1641734393663,0.00113685,3126.1,3125.6,0.00170527]
[1641734394061,0.00113685,3126.1,3125.8,0.7999113]
[1641734394761,0.00113685,3126.1,3125.8,3.19616154]
[1641734395163,0.00113685,3126.1,3125.9,0.79991]
[1641734395464,3.685e-05,3126.1,3126.0,18.59016181]
[1641734395664,1.92119883,3127.8,3126.0,18.59016181]
[1641734395665,6.4227164,3127.7,3126.1,16.6]
[1641734395862,3.6378,3127.7,3126.2,7.8900164]
[1641734396123,0.00341054,3126.7,3126.2,9.1900164]
[1641734396312,0.00341054,3126.7,3126.4,2.3989]
[1641734396609,0.00284212,3126.6,3126.5,1.31200994]
[1641734397012,0.00284212,3126.6,3126.5,18.66200994]
[1641734397210,0.00284212,3126.6,3126.5,21.86052804]
[1641734397413,0.00284212,3126.6,3126.5,22.16052804]
[1641734397612,0.00284212,3126.6,3126.5,40.95052804]
[1641734397813,1.6005634,3127.7,3126.8,1.59902]
[1641734398014,1.6005634,3127.7,3126.9,2.30766976]
[1641734398215,0.00284211,3127.1,3126.9,2.30766976]
[1641734398415,0.00284211,3127.1,3126.9,3.30766976]
[1641734398717,1.6005634,3127.7,3127.0,17.37411322]
[1641734398916,1.68814744,3127.5,3127.1,1.19033041]
[1641734399115,1.63814744,3127.5,3127.2,2.1414461]
[1641734399519,1.63814744,3127.5,3127.1,1.19033041]
[1641734399958,1.63814744,3127.5,3127.1,3.9161006]
[1641734400158,0.5822926,3127.5,3127.1,3.9161006]
[1641734400358,0.00568423,3127.6,3127.1,4.7157106]
[1641734400560,0.00568423,3127.6,3127.2,2.11554571]
[1641734400759,3.7316,3128.2,3127.1,3.52538019]
[1641734400760,0.00511581,3127.5,3127.1,3.52538019]
[1641734400958,0.00511581,3127.5,3127.1,2.72577019]
[1641734401159,1.13538856,3127.4,3127.3,2.72577019]
[1641734401560,1.13936753,3127.4,3127.3,2.72577019]
[1641734401964,1.13936753,3127.4,3127.1,2.72577019]
[1641734402164,0.53629273,3127.3,3127.1,2.72577019]
[1641734402361,0.54027169,3127.3,3127.1,2.72577019]
[1641734402562,0.00341054,3127.2,3126.9,2.72577019]
[1641734402764,0.00341054,3127.2,3127.0,2.12582289]
[1641734402961,0.00284211,3127.1,3127.0,10.82582289]
[1641734403809,1.28010241,3127.9,3127.1,9.95]
[1641734404010,1.28010241,3127.9,3127.2,2.20681845]
[1641734404211,0.00397897,3127.8,3127.2,2.20681845]
[1641734404411,0.59439026,3127.5,3127.2,2.20681845]
[1641734404715,0.00170527,3127.4,3127.2,2.20681845]
[1641734404910,0.00170527,3127.4,3127.3,6.67577019]
[1641734405112,0.59439026,3127.5,3127.3,6.67577019]
[1641734405310,0.59439026,3127.5,3127.3,2.72577019]
[1641734406112,0.59439026,3127.5,3127.0,2.72577019]
[1641734406312,0.59439026,3127.5,3127.1,2.27584251]
[1641734406712,0.59439026,3127.5,3127.4,2.72577019]
[1641734407111,0.59666396,3127.5,3127.4,2.72577019]
[1641734407354,0.12371476,3127.9,3127.3,6.25]
[1641734407554,0.65619625,3127.4,3127.2,2.72577019]
[1641734407757,0.65619625,3127.4,3127.1,2.27584251]
[1641734407953,0.65619625,3127.4,3127.3,0.00113685]
[1641734408153,0.65619625,3127.4,3127.2,0.00170527]
[1641734408352,0.65619625,3127.4,3127.0,0.00284212]
[1641734408953,1.03635192,3127.3,3127.0,0.00284212]
[1641734409353,0.65619625,3127.4,3126.5,0.00568424]
[1641734409354,1.22867588,3126.6,3126.5,0.00568424]
[1641734409559,0.66026659,3126.6,3126.5,0.00568424]
[1641734409753,0.66026659,3126.6,3126.4,1.16387912]
[1641734409956,0.66026659,3126.6,3126.3,1.16387912]
[1641734410554,1.01038474,3126.5,3125.8,1.5997984]
[1641734410953,1.01038474,3126.5,3126.0,0.79989]
[1641734411508,1.01038474,3126.5,3126.1,0.00227369]
[1641734412107,0.66026659,3126.6,3125.8,0.00397896]
[1641734412512,0.66026659,3126.6,3125.9,2.38460452]
[1641734412910,3.7494,3127.3,3126.0,0.00284211]
[1641734412911,0.6119511,3126.1,3126.0,0.00284211]
[1641734413111,5.93854861,3126.1,3126.0,0.00284211]
[1641734413810,15.5,3126.0,3125.9,4.663e-05]
[1641734414008,15.5,3126.0,3125.7,0.01397763]
[1641734414009,2.28279344,3126.0,3125.7,0.01397763]
[1641734414208,0.80026,3125.9,3125.7,0.01397763]
[1641734414408,0.80026,3125.9,3125.8,0.00113685]
[1641734414855,3.08305344,3126.0,3125.8,0.00113685]
[1641734419701,0.68219554,3126.0,3125.8,0.00113685]
[1641734420602,1.38854861,3126.1,3125.9,1.19172314]
[1641734420806,0.54282241,3126.0,3125.9,1.19172314]
[1641734421303,0.49282241,3126.0,3125.9,1.19172314]
[1641734423057,2.0808272,3126.4,3125.9,1.19172314]
[1641734423258,1.2807172,3126.4,3125.9,1.19172314]
[1641734423457,0.00170527,3126.3,3125.9,1.19172314]
[1641734423858,0.00113684,3126.2,3126.0,1.19172314]
[1641734424259,0.00170527,3126.3,3126.0,1.19172314]
[1641734424459,0.00170527,3126.3,3126.1,2.2270379]
[1641734424663,0.00113684,3126.2,3126.1,12.0770379]
[1641734424864,0.00113684,3126.2,3126.1,12.73790876]
[1641734425059,0.00170527,3126.2,3126.1,12.73790876]
[1641734425258,0.00170527,3126.2,3126.1,13.87076085]
[1641734425660,0.00170527,3126.2,3126.1,20.62076085]
[1641734425860,0.00170527,3126.2,3126.1,13.87076085]
[1641734426110,0.00170527,3126.2,3126.1,15.46363818]
[1641734426503,0.00170527,3126.2,3126.1,13.23660028]
[1641734427103,0.00170527,3126.2,3126.1,12.57572942]
[1641734427303,0.00170527,3126.2,3126.1,2.72572942]
[1641734427503,1.30946183,3126.5,3126.1,2.72572942]
[1641734427703,1.30946183,3126.5,3126.1,2.72686627]
[1641734427904,1.30946183,3126.5,3126.1,0.00113685]
[1641734428108,0.52461288,3126.3,3126.1,0.00113685]
[1641734428304,1.30946183,3126.5,3125.9,0.57081234]
[1641734428507,1.30946183,3126.5,3126.0,2.04956071]
[1641734428705,1.30946183,3126.5,3126.0,2.05126598]
[1641734428906,1.30946183,3126.5,3126.1,0.00113685]
[1641734429106,1.30946183,3126.5,3126.1,2.72686627]
[1641734429307,0.55782115,3126.4,3126.1,2.72686627]
[1641734430554,3.68042121,3127.0,3126.1,2.72686627]
[1641734430952,0.00341054,3126.9,3126.1,2.72686627]
[1641734431354,0.00284211,3126.8,3126.2,2.0862765]
[1641734431652,0.00227369,3126.7,3126.2,2.10342268]
[1641734431853,0.00227369,3126.7,3126.4,0.58184218]
[1641734432054,0.00170527,3126.6,3126.4,2.662428]
[1641734432254,0.00170527,3126.6,3126.5,6.70967932]
[1641734432455,1.28047121,3127.0,3126.5,9.43540874]
[1641734432656,1.28047121,3127.0,3126.6,2.22329148]
[1641734432856,0.00341054,3126.9,3126.6,2.26026475]
[1641734433056,0.00341054,3126.9,3126.7,0.79968]
[1641734433359,1.28047121,3127.0,3126.8,17.83665589]
[1641734433627,1.28047121,3127.0,3126.9,12.701138]
[1641734433809,1.28047121,3127.0,3126.9,12.02473619]
[1641734434009,1.28445017,3127.0,3126.9,12.02473619]
[1641734434809,1.28445017,3127.0,3126.9,14.75046561]
[1641734435611,1.73403197,3127.5,3127.0,5.0]
[1641734435811,1.73403197,3127.5,3127.1,2.04143288]
[1641734436015,0.00227369,3127.4,3127.1,2.04143288]
[1641734436214,0.00227369,3127.4,3126.9,2.72572942]
[1641734436514,0.00170527,3127.3,3126.9,2.72572942]
[1641734436713,0.00170527,3127.3,3127.2,2.72572942]
[1641734436911,1.73403197,3127.5,3127.2,2.72572942]
[1641734437352,0.00227369,3127.4,3126.9,2.72572942]
[1641734437753,0.00170527,3127.3,3126.8,2.06905141]
[1641734437954,0.00170527,3127.3,3126.7,5.96435004]
[1641734438154,0.00113685,3127.2,3126.7,5.96435004]
[1641734438354,0.00113685,3127.2,3126.8,0.00113685]
[1641734438756,0.64045119,3127.0,3126.8,0.00113685]
[1641734439256,1.9209224,3127.0,3126.8,0.00113685]
[1641734439756,1.9209224,3127.0,3126.7,0.00170527]
[1641734440760,1.9209224,3127.0,3126.8,1.1865944]
[1641734441405,1.9209224,3127.0,3126.9,1.1865944]
[1641734442005,1.28047121,3127.0,3126.9,1.1865944]
[1641734442908,1.28047121,3127.0,3126.7,0.00170527]
[1641734443107,0.59019659,3126.8,3126.7,0.00170527]
[1641734443509,0.59019659,3126.8,3126.7,8.60170527]
[1641734444210,0.59019659,3126.8,3126.7,10.77148909]
[1641734444410,1.28047121,3127.0,3126.7,10.77148909]
[1641734444609,0.00113685,3127.2,3126.7,10.77148909]
[1641734444853,0.00113685,3127.2,3126.8,0.00113685]
[1641734446156,0.52373471,3127.1,3126.8,0.00113685]
[1641734446555,1.17039337,3127.0,3126.8,0.00113685]
[1641734447657,1.17039337,3127.0,3126.6,0.00227369]
[1641734447858,1.17039337,3127.0,3126.5,0.00284212]
[1641734448157,0.52373471,3127.1,3126.5,0.00284212]
[1641734448158,1.16512169,3126.8,3126.5,0.00284212]
[1641734448357,1.16512169,3126.8,3126.5,0.00397897]
[1641734448613,1.16512169,3126.8,3126.4,0.00454739]
[1641734448805,0.58708349,3126.7,3126.4,0.00454739]
[1641734449204,0.58708349,3126.7,3126.3,0.00511581]
[1641734450008,3.6045,3127.4,3126.3,0.00511581]
[1641734450207,3.6045,3127.4,3126.4,0.79977]
[1641734450607,3.6045,3127.4,3126.5,2.08521867]
[1641734450807,0.56884245,3127.7,3126.5,2.08521867]
[1641734451006,0.6735582,3126.8,3126.6,0.00341054]
[1641734451208,1.84246466,3126.8,3126.6,0.00341054]
[1641734451408,0.00170527,3127.5,3126.6,0.00341054]
[1641734451610,0.00170527,3127.5,3126.5,2.07700128]
[1641734451807,0.00113684,3127.4,3126.6,0.00341054]
[1641734452208,0.80207369,3127.6,3126.6,0.00341054]
[1641734452462,0.69967564,3127.1,3126.7,0.64758939]
[1641734452663,1.82807824,3127.1,3126.6,0.00341054]
[1641734452862,1.82807824,3127.1,3126.8,0.0022737]
[1641734453062,1.82807824,3127.1,3126.6,0.00341054]
[1641734453462,0.19306529,3127.1,3126.6,2.72843212]
[1641734453863,0.19306529,3127.1,3126.7,0.00284212]
[1641734454863,0.19306529,3127.1,3126.8,0.49312483]
[1641734455265,0.19306529,3127.1,3126.9,0.00170527]
[1641734455866,0.19306529,3127.1,3126.9,2.72672685]
[1641734456111,0.00227369,3127.6,3126.9,2.72672685]
[1641734456305,0.00227369,3127.6,3127.0,0.00113685]
[1641734456507,0.86859085,3127.7,3127.0,0.00113685]
[1641734456508,0.00113684,3127.4,3127.0,0.00113685]
[1641734456910,0.00227369,3127.6,3126.9,0.00170527]
[1641734457308,1.09941601,3127.4,3126.9,2.72672685]
[1641734457508,1.09941601,3127.4,3126.9,4.77041278]
[1641734457708,1.09941601,3127.4,3127.0,0.00113685]
[1641734458618,1.09941601,3127.4,3127.0,2.72615843]
[1641734459209,1.09941601,3127.4,3127.0,3.91514372]
[1641734461361,1.09941601,3127.4,3127.0,1.19012214]
[1641734463166,1.09941601,3127.4,3127.1,1.18898529]
[1641734463622,1.09941601,3127.4,3127.1,3.91400687]
[1641734464219,0.68612245,3127.3,3127.1,1.18898529]
[1641734465418,5.80008,3127.1,3127.0,0.00113685]
[1641734465620,5.0,3127.1,3127.0,0.00113685]
[1641734465820,5.0,3127.1,3126.9,0.00170527]
[1641734466020,6.1000545,3127.1,3126.9,0.00170527]
[1641734466220,5.8000545,3127.1,3126.9,0.00170527]
[1641734466821,0.80009,3126.8,3126.4,0.00454739]
[1641734467021,1.60014,3126.6,3126.1,0.00625266]
[1641734467226,1.24455829,3126.3,3126.1,0.00625266]
[1641734467463,3.9974,3127.2,3126.1,0.54011775]
[1641734467862,3.9974,3127.2,3126.2,2.73070582]
[1641734468260,3.9974,3127.2,3126.3,0.00511581]
[1641734468463,1.20552159,3126.9,3126.6,0.66646361]
[1641734468663,1.07002359,3127.1,3126.6,0.66646361]
[1641734468861,1.07002359,3127.1,3126.7,0.00284212]
[1641734469061,1.07002359,3127.1,3126.7,2.7278637]
[1641734469461,1.07002359,3127.1,3126.8,0.0022737]
[1641734469664,1.86991359,3127.1,3126.8,0.0022737]
[1641734470664,0.79991,3127.0,3126.6,0.00341054]
[1641734471117,1.5998183,3127.0,3126.6,0.00341054]
[1641734471507,0.79991,3127.0,3126.6,0.00341054]
[1641734472307,0.7999271,3126.9,3126.6,0.00341054]
[1641734472511,1.60007,3126.8,3126.3,0.00511581]
[1641734472707,1.15135796,3126.4,3126.3,0.00511581]
[1641734472908,1.6001984,3126.8,3126.3,0.00511581]
[1641734473107,1.6001984,3126.8,3126.1,0.00625266]
[1641734473307,0.7999936,3126.7,3126.1,0.00625266]
[1641734473509,1.61280876,3127.0,3126.3,2.72502158]
[1641734473907,1.61280876,3127.0,3126.4,0.00454739]
[1641734474208,2.75332298,3127.0,3126.4,0.00459402]
[1641734474410,1.95338298,3127.0,3126.4,0.00459402]
[1641734474608,0.79997,3126.8,3126.5,0.00397897]
[1641734475255,0.79997,3126.8,3126.6,2.72502158]
[1641734475655,0.79997,3126.8,3126.7,0.00284212]
[1641734476058,2.3999265,3126.8,3126.7,0.00284212]
[1641734476456,0.79999,3126.8,3126.7,0.00284212]
[1641734476857,0.8,3126.9,3126.7,2.7278637]
[1641734477358,2.74035422,3127.0,3126.8,0.0022737]
[1641734477561,0.7999275,3126.9,3126.8,0.0022737]
[1641734477957,0.7999275,3126.9,3126.8,3.91521675]
[1641734478621,1.41682535,3126.9,3126.8,3.91521675]
[1641734480214,0.7999275,3126.9,3126.8,3.91521675]
[1641734482371,0.7999275,3126.9,3126.8,2.72729528]
[1641734482774,1.2999275,3126.9,3126.8,2.72729528]
[1641734485474,1.2999275,3126.9,3126.8,0.0022737]
[1641734485475,2.8999375,3126.9,3126.8,0.0022737]
[1641734485875,2.8999375,3126.9,3126.8,2.72729528]
[1641734486112,7.3499375,3126.9,3126.8,2.72729528]
[1641734486508,7.3499375,3126.9,3126.8,0.0022737]
[1641734486909,7.3499375,3126.9,3126.7,0.00284212]
[1641734487109,1.6002826,3126.8,3126.7,0.00284212]
[1641734488510,8.17860646,3126.8,3126.7,0.00284212]
[1641734488912,4.5002375,3126.9,3126.7,0.00284212]
[1641734489511,0.62287855,3126.8,3126.7,0.00284212]
[1641734489712,2.22316115,3126.8,3126.7,0.00284212]
[1641734489957,0.80004,3126.7,3126.5,0.00397897]
[1641734490761,0.80004,3126.7,3126.6,2.72502158]
[1641734491159,0.80004,3126.7,3126.6,2.72843212]
[1641734491361,7.00004,3126.7,3126.6,2.67843212]
[1641734491560,0.80004,3126.7,3126.6,2.67843212]
[1641734492562,0.80004,3126.7,3126.6,0.00341054]
[1641734492763,0.80007,3126.8,3126.6,0.00341054]
[1641734492962,0.80007,3126.8,3126.2,1.18792147]
[1641734492963,0.5,3126.9,3126.5,33.88710302]
[1641734493169,0.5,3126.9,3126.6,2.04242051]
[1641734493462,5.26472923,3127.6,3127.5,1.12230109]
[1641734493463,3.66502923,3127.6,3127.5,1.12230109]
[1641734493713,2.43492923,3127.6,3127.5,1.12230109]
[1641734493911,2.97056671,3127.6,3127.5,1.12230109]
[1641734494119,3.77034671,3127.6,3127.5,1.12230109]
[1641734494310,3.23698292,3127.6,3127.5,1.12230109]
[1641734494509,1.63729162,3127.6,3127.5,1.12230109]
[1641734495310,1.63729162,3127.6,3127.1,1.21177211]
[1641734495718,0.00170527,3127.5,3127.1,1.21177211]
[1641734495912,0.7997845,3127.4,3127.1,1.21177211]
[1641734496113,0.80092134,3127.4,3127.1,1.21177211]
[1641734496312,0.80092134,3127.4,3127.0,1.18792147]
[1641734497357,1.5996786,3127.3,3127.0,1.18792147]
[1641734497958,0.80095684,3127.4,3127.0,1.18792147]
[1641734498363,0.80092684,3127.4,3127.0,1.18792147]
[1641734498559,0.00113684,3127.4,3127.0,1.18792147]
[1641734499564,2.40071304,3127.4,3127.0,1.18792147]
[1641734499761,1.60088304,3127.4,3127.0,1.18792147]
[1641734500161,2.70070304,3127.4,3127.0,1.18792147]
[1641734500361,1.59905684,3127.4,3127.0,1.18792147]
[1641734500561,1.09995,3127.2,3127.0,1.18792147]
[1641734500963,0.79995,3127.2,3127.0,1.18792147]
[1641734501212,2.39995,3127.2,3126.7,0.00284212]
[1641734501608,3.2001766,3127.0,3126.5,0.00397897]
[1641734501809,0.52931983,3126.6,3126.5,0.00397897]
[1641734502110,1.86475973,3126.6,3126.5,0.00397897]
[1641734502711,2.36475973,3126.6,3126.5,0.00397897]
[1641734502910,3.16477973,3126.6,3126.5,0.00397897]
[1641734503711,2.66477973,3126.6,3126.5,0.00397897]
[1641734504312,2.66477973,3126.6,3126.2,0.00568424]
[1641734504514,1.6002742,3126.5,3126.2,0.00568424]
[1641734504712,0.80014,3126.4,3126.2,0.00568424]
[1641734505359,0.80014,3126.4,3126.2,1.19360571]
[1641734505758,0.80014,3126.4,3126.3,0.00511581]
[1641734505959,1.6002589,3126.4,3126.3,1.19303728]
[1641734506164,2.4003989,3126.4,3126.3,1.19303728]
[1641734506358,1.6002589,3126.4,3126.3,1.19303728]
[1641734507761,1.6002589,3126.4,3126.3,0.00511581]
[1641734509110,4.55832344,3126.6,3126.3,0.00511581]
[1641734509812,0.80014,3126.4,3126.3,0.00511581]
[1641734510012,0.80014,3126.4,3126.0,0.00682108]
[1641734510212,1.60021,3126.4,3126.3,1.18948509]
[1641734510411,1.6002589,3126.4,3126.3,1.18948509]
[1641734510611,1.6002589,3126.4,3126.3,1.1946009]
[1641734510811,1.6002589,3126.4,3126.3,0.00511581]
[1641734511214,1.6002589,3126.4,3125.9,0.00743614]
[1641734511420,0.64710788,3126.1,3126.0,0.00682108]
[1641734512016,0.64710788,3126.1,3125.9,0.00738951]
[1641734512458,0.80014,3126.2,3125.9,0.00738951]
[1641734513160,0.80014,3126.2,3125.7,0.01397763]
[1641734513161,1.32556384,3126.1,3125.8,0.00795793]
[1641734513458,0.80018,3126.0,3125.8,0.00795793]
[1641734513658,1.6003577,3126.1,3125.8,0.00795793]
[1641734513859,0.80018,3126.1,3125.8,0.00795793]
[1641734514259,0.8001076,3126.3,3125.8,0.00795793]
[1641734514659,1.6002176,3126.3,3125.8,0.00795793]
[1641734514859,0.53405176,3126.5,3125.8,0.00795793]
[1641734515459,0.8000817,3126.4,3125.8,0.00795793]
[1641734515660,0.53405176,3126.5,3125.8,0.00795793]
[1641734515661,0.80012,3126.3,3125.8,0.00795793]
[1641734516111,0.80012,3126.2,3125.8,0.00795793]
[1641734518010,0.80007,3126.4,3125.8,0.00795793]
[1641734519010,0.8001024,3126.3,3125.8,0.00800456]
[1641734519511,1.6002124,3126.3,3125.9,0.00738951]